[Event "MČR v rapid šachu družstev 2019"]
[Site "Teplice, Czech Republic"]
[Date "2019.09.15"]
[Round "2.12"]
[White "Cech, Pavel"]
[Black "Tichy, Lukas"]
[Result "1-0"]
[TimeControl "15 min. + 5s"]
[WhiteElo "2394"]
[BlackElo "1869"]

1. e4 {[%clk 00:15:07]} {[%emt 00:00:02]} e6 {[%clk 00:15:09]} {[%emt
00:00:02]} 2. d4 {[%clk 00:15:09]} {[%emt 00:00:03]} d5 {[%clk 00:15:12]}
{[%emt 00:00:01]} 3. Nd2 {[%clk 00:15:11]} {[%emt 00:00:03]} a6 {[%clk
00:15:15]} {[%emt 00:00:02]} 4. Ngf3 {[%clk 00:14:52]} {[%emt 00:00:25]} c5
{[%clk 00:15:19]} {[%emt 00:00:02]} 5. exd5 {[%clk 00:14:44]} {[%emt 00:00:13]}
exd5 {[%clk 00:15:21]} {[%emt 00:00:03]} 6. Be2 {[%clk 00:14:39]} {[%emt
00:00:09]} Nf6 {[%clk 00:15:00]} {[%emt 00:00:27]} 7. O-O {[%clk 00:14:39]}
{[%emt 00:00:05]} Nc6 {[%clk 00:14:13]} {[%emt 00:00:51]} 8. Re1 {[%clk
00:14:22]} {[%emt 00:00:22]} Be6 {[%clk 00:13:27]} {[%emt 00:00:52]} 9. dxc5
{[%clk 00:13:30]} {[%emt 00:00:56]} Bxc5 {[%clk 00:13:29]} {[%emt 00:00:03]} 10.
Nb3 {[%clk 00:13:29]} {[%emt 00:00:05]} Bb6 {[%clk 00:13:19]} {[%emt 00:00:15]}
11. Nbd4 {[%clk 00:13:11]} {[%emt 00:00:24]} Ne4 {[%clk 00:12:01]} {[%emt
00:01:23]} 12. Be3 {[%clk 00:12:57]} {[%emt 00:00:18]} O-O {[%clk 00:11:33]}
{[%emt 00:00:33]} 13. c3 {[%clk 00:12:01]} {[%emt 00:01:00]} Bg4 {[%clk
00:09:23]} {[%emt 00:02:15]} 14. Qb3 {[%clk 00:10:26]} {[%emt 00:01:41]} Na5
{[%clk 00:07:32]} {[%emt 00:01:56]} 15. Qc2 {[%clk 00:10:29]} {[%emt 00:00:02]}
Nc6 {[%clk 00:06:37]} {[%emt 00:01:01]} 16. Rad1 {[%clk 00:07:07]} {[%emt
00:03:26]} Rc8 {[%clk 00:04:05]} {[%emt 00:02:36]} 17. Nxc6 {[%clk 00:06:40]}
{[%emt 00:00:33]} Rxc6 {[%clk 00:03:03]} {[%emt 00:01:07]} 18. Bxb6 {[%clk
00:06:37]} {[%emt 00:00:09]} Qxb6 {[%clk 00:01:44]} {[%emt 00:01:24]} 19. Nd4
{[%clk 00:06:27]} {[%emt 00:00:15]} Bxe2 {[%clk 00:01:42]} {[%emt 00:00:07]} 20.
Rxe2 {[%clk 00:06:09]} {[%emt 00:00:22]} Rf6 {[%clk 00:00:56]} {[%emt
00:00:51]} 21. f3 {[%clk 00:06:05]} {[%emt 00:00:10]} Nd6 {[%clk 00:00:44]}
{[%emt 00:00:17]} 22. Kh1 {[%clk 00:05:57]} {[%emt 00:00:13]} Nb5 {[%clk
00:00:16]} {[%emt 00:00:33]} 23. Nf5 {[%clk 00:05:52]} {[%emt 00:00:10]} Re6
{[%clk 00:00:08]} {[%emt 00:00:13]} 24. Ne7+ {[%clk 00:04:45]} {[%emt
00:01:11]} Kh8 {[%clk 00:00:09]} {[%emt 00:00:05]} 25. Nxd5 {[%clk 00:04:47]}
{[%emt 00:00:03]} Rxe2 {[%clk 00:00:06]} {[%emt 00:00:08]} 26. Qxe2 {[%clk
00:04:50]} {[%emt 00:00:02]} Qc5 {[%emt 00:00:08]} 27. Qe7 {[%emt 00:00:23]}
1-0

[Event "MČR v rapid šachu družstev 2019"]
[Site "Teplice, Czech Republic"]
[Date "2019.09.15"]
[Round "2.13"]
[White "Wichs, Jakub"]
[Black "Jirovsky, Milos"]
[Result "0-1"]
[TimeControl "15 min. + 5s"]
[WhiteElo "2090"]
[BlackElo "2477"]

1. e4 {[%clk 00:15:07]} {[%emt 00:00:02]} d5 {[%clk 00:15:09]} 2. exd5 {[%clk
00:15:08]} {[%emt 00:00:06]} Qxd5 {[%clk 00:15:13]} {[%emt 00:00:01]} 3. Nc3
{[%clk 00:15:10]} {[%emt 00:00:02]} Qd6 {[%clk 00:15:17]} 4. d4 {[%clk
00:15:10]} {[%emt 00:00:06]} Nf6 {[%clk 00:15:21]} {[%emt 00:00:02]} 5. Nf3
{[%clk 00:14:59]} {[%emt 00:00:16]} c6 {[%clk 00:15:25]} {[%emt 00:00:01]} 6.
Be3 {[%clk 00:14:35]} {[%emt 00:00:29]} Bf5 {[%clk 00:15:26]} {[%emt 00:00:03]}
7. Bd3 {[%clk 00:14:33]} {[%emt 00:00:07]} Bg6 {[%clk 00:15:30]} {[%emt
00:00:02]} 8. Qd2 {[%clk 00:14:20]} {[%emt 00:00:18]} Nbd7 {[%clk 00:15:29]}
{[%emt 00:00:06]} 9. O-O-O {[%clk 00:14:12]} {[%emt 00:00:13]} Bxd3 {[%clk
00:15:20]} {[%emt 00:00:14]} 10. Qxd3 {[%clk 00:14:07]} {[%emt 00:00:09]} e6
{[%clk 00:15:24]} {[%emt 00:00:02]} 11. Ne5 {[%clk 00:13:36]} {[%emt 00:00:36]}
Nxe5 {[%clk 00:14:59]} {[%emt 00:00:30]} 12. dxe5 {[%clk 00:13:39]} {[%emt
00:00:02]} Qxe5 {[%clk 00:14:42]} {[%emt 00:00:23]} 13. Bxa7 {[%clk 00:09:18]}
{[%emt 00:04:25]} Bc5 {[%clk 00:13:20]} {[%emt 00:01:27]} 14. Bxc5 {[%clk
00:08:07]} {[%emt 00:01:17]} Qxc5 {[%clk 00:13:23]} {[%emt 00:00:01]} 15. Ne4
{[%clk 00:06:23]} {[%emt 00:01:48]} Nxe4 {[%clk 00:11:17]} {[%emt 00:02:12]} 16.
Qd7+ {[%clk 00:06:25]} {[%emt 00:00:03]} Kf8 {[%clk 00:11:21]} {[%emt
00:00:01]} 17. Qxb7 {[%clk 00:06:20]} {[%emt 00:00:10]} Re8 {[%clk 00:11:22]}
{[%emt 00:00:04]} 18. Rd7 {[%clk 00:06:12]} {[%emt 00:00:12]} Qf5 {[%clk
00:11:08]} {[%emt 00:00:19]} 19. g4 {[%clk 00:05:45]} {[%emt 00:00:33]} Qf4+
{[%clk 00:11:02]} {[%emt 00:00:11]} 20. Kb1 {[%clk 00:05:47]} {[%emt 00:00:03]}
Nc5 {[%clk 00:08:54]} {[%emt 00:02:14]} 21. Qc7 {[%clk 00:05:49]} {[%emt
00:00:03]} g5 {[%clk 00:08:46]} {[%emt 00:00:12]} 22. Qxf4 {[%clk 00:05:28]}
{[%emt 00:00:25]} gxf4 {[%clk 00:08:51]} {[%emt 00:00:01]} 23. Rc7 {[%clk
00:05:18]} {[%emt 00:00:15]} Kg7 {[%clk 00:08:51]} {[%emt 00:00:05]} 24. Rxc6
{[%clk 00:05:18]} {[%emt 00:00:05]} Rc8 {[%clk 00:08:54]} {[%emt 00:00:02]} 25.
Rxc8 {[%clk 00:05:11]} {[%emt 00:00:12]} Rxc8 {[%clk 00:08:58]} {[%emt
00:00:01]} 26. Rd1 {[%clk 00:05:14]} {[%emt 00:00:01]} Kf6 {[%clk 00:08:59]}
{[%emt 00:00:04]} 27. f3 {[%clk 00:04:52]} {[%emt 00:00:26]} Kg5 {[%clk
00:08:45]} {[%emt 00:00:20]} 28. b4 {[%clk 00:04:48]} {[%emt 00:00:09]} Na4
{[%clk 00:08:44]} {[%emt 00:00:06]} 29. Rd7 {[%clk 00:04:49]} {[%emt 00:00:04]}
Kf6 {[%clk 00:07:51]} {[%emt 00:00:59]} 30. h4 {[%clk 00:03:24]} {[%emt
00:01:30]} h6 {[%clk 00:07:55]} {[%emt 00:00:01]} 31. Ra7 {[%clk 00:03:12]}
{[%emt 00:00:16]} Nc3+ {[%clk 00:07:39]} {[%emt 00:00:21]} 32. Kb2 {[%clk
00:03:12]} {[%emt 00:00:04]} Nd1+ {[%clk 00:07:40]} {[%emt 00:00:04]} 33. Kc1
{[%clk 00:02:56]} {[%emt 00:00:21]} Ne3 {[%clk 00:07:43]} {[%emt 00:00:03]} 34.
b5 {[%clk 00:02:38]} {[%emt 00:00:23]} Rxc2+ {[%clk 00:06:15]} {[%emt
00:01:32]} 35. Kb1 {[%clk 00:02:42]} Rc4 {[%clk 00:06:19]} {[%emt 00:00:01]} 36.
Kb2 {[%clk 00:02:12]} {[%emt 00:00:34]} Rb4+ {[%clk 00:06:21]} {[%emt
00:00:04]} 0-1

[Event "MČR v rapid šachu družstev 2019"]
[Site "Teplice, Czech Republic"]
[Date "2019.09.15"]
[Round "2.14"]
[White "Sokolov, Alexander"]
[Black "Sulc, Jaromir"]
[Result "1-0"]
[TimeControl "15 min. + 5s"]
[WhiteElo "2384"]
[BlackElo "2000"]

1. e4 {[%clk 00:15:07]} {[%emt 00:00:02]} e5 {[%clk 00:15:08]} {[%emt
00:00:02]} 2. f4 {[%clk 00:15:10]} {[%emt 00:00:02]} Bc5 {[%clk 00:15:04]}
{[%emt 00:00:09]} 3. Nf3 {[%clk 00:15:14]} {[%emt 00:00:02]} d6 {[%clk
00:15:04]} {[%emt 00:00:05]} 4. Nc3 {[%clk 00:15:17]} {[%emt 00:00:01]} Nf6
{[%clk 00:15:06]} {[%emt 00:00:03]} 5. Bc4 {[%clk 00:15:20]} {[%emt 00:00:02]}
Nc6 {[%clk 00:15:09]} {[%emt 00:00:02]} 6. d3 {[%clk 00:15:24]} {[%emt
00:00:01]} Bg4 {[%clk 00:14:39]} {[%emt 00:00:35]} 7. Na4 {[%clk 00:14:36]}
{[%emt 00:00:52]} Nd4 {[%clk 00:12:11]} {[%emt 00:02:33]} 8. Nxc5 {[%clk
00:13:30]} {[%emt 00:01:06]} dxc5 {[%clk 00:12:10]} {[%emt 00:00:06]} 9. c3
{[%clk 00:12:50]} {[%emt 00:00:50]} Nxf3+ {[%clk 00:10:07]} {[%emt 00:02:08]}
10. gxf3 {[%clk 00:12:53]} {[%emt 00:00:02]} Bh3 {[%clk 00:09:43]} {[%emt
00:00:28]} 11. Qe2 {[%clk 00:11:39]} {[%emt 00:01:18]} Nd7 {[%clk 00:07:10]}
{[%emt 00:02:39]} 12. Rg1 {[%clk 00:10:20]} {[%emt 00:01:25]} g6 {[%clk
00:06:48]} {[%emt 00:00:27]} 13. f5 {[%clk 00:08:40]} {[%emt 00:01:44]} gxf5
{[%clk 00:05:44]} {[%emt 00:01:09]} 14. Bg5 {[%clk 00:08:24]} {[%emt 00:00:21]}
f6 {[%clk 00:05:25]} {[%emt 00:00:24]} 15. Bh6 {[%clk 00:07:59]} {[%emt
00:00:31]} f4 {[%clk 00:03:45]} {[%emt 00:01:45]} 16. Bg7 {[%clk 00:06:05]}
{[%emt 00:01:58]} Rf8 {[%clk 00:03:48]} {[%emt 00:00:02]} 17. Bxf8 {[%clk
00:06:01]} {[%emt 00:00:09]} Nxf8 {[%clk 00:03:51]} {[%emt 00:00:02]} 18. Rg7
{[%clk 00:05:22]} {[%emt 00:00:43]} Qd6 {[%clk 00:03:34]} {[%emt 00:00:22]} 19.
Bf7+ {[%clk 00:05:14]} {[%emt 00:00:13]} Kd8 {[%clk 00:03:36]} {[%emt
00:00:03]} 20. O-O-O {[%clk 00:05:11]} {[%emt 00:00:08]} c6 {[%clk 00:02:19]}
{[%emt 00:01:22]} 21. Qf2 {[%clk 00:04:46]} {[%emt 00:00:31]} Bd7 {[%clk
00:02:12]} {[%emt 00:00:11]} 22. d4 {[%clk 00:04:01]} {[%emt 00:00:49]} cxd4
{[%clk 00:02:09]} {[%emt 00:00:09]} 23. cxd4 {[%clk 00:04:04]} {[%emt
00:00:02]} Kc7 {[%clk 00:02:08]} {[%emt 00:00:05]} 24. Bb3 {[%clk 00:02:11]}
{[%emt 00:01:59]} Rd8 {[%clk 00:00:29]} {[%emt 00:01:45]} 25. dxe5 {[%clk
00:02:10]} {[%emt 00:00:06]} Qxe5 {[%clk 00:00:33]} {[%emt 00:00:01]} 26. Qd4
{[%clk 00:02:14]} {[%emt 00:00:01]} Kb8 {[%clk 00:00:21]} {[%emt 00:00:17]} 27.
Rf7 {[%clk 00:02:02]} {[%emt 00:00:17]} Qh5 {[%clk 00:00:15]} {[%emt 00:00:11]}
28. Rxf8 {[%clk 00:01:56]} {[%emt 00:00:11]} 1-0

[Event "MČR v rapid šachu družstev 2019"]
[Site "Teplice, Czech Republic"]
[Date "2019.09.15"]
[Round "2.15"]
[White "Sochor, Jiri"]
[Black "Dolezal, Radoslav"]
[Result "0-1"]
[TimeControl "15 min. + 5s"]
[WhiteElo "2249"]
[BlackElo "2363"]

1. d4 {[%emt 00:17:34]} Nf6 {[%emt 00:00:03]} 2. c4 {[%emt 00:00:02]} e6 {[%emt
00:00:03]} 3. Nf3 {[%emt 00:00:04]} Bb4+ {[%emt 00:00:06]} 4. Bd2 {[%emt
00:00:09]} Qe7 {[%emt 00:00:02]} 5. Nc3 {[%emt 00:00:06]} O-O {[%emt 00:00:07]}
6. e3 {[%emt 00:00:06]} d6 {[%emt 00:00:09]} 7. a3 {[%emt 00:00:43]} Bxc3
{[%emt 00:00:03]} 8. Bxc3 Ne4 {[%emt 00:00:07]} 9. Qc2 {[%emt 00:00:12]} f5
{[%emt 00:00:58]} 10. Bd3 {[%emt 00:00:29]} Nxc3 {[%emt 00:00:04]} 11. Qxc3
{[%emt 00:00:01]} Nd7 {[%emt 00:00:01]} 12. Bc2 {[%emt 00:01:49]} b6 {[%emt
00:00:46]} 13. O-O-O {[%emt 00:00:53]} Bb7 {[%emt 00:00:04]} 14. Rhg1 {[%emt
00:00:01]} Nf6 {[%emt 00:00:19]} 15. Kb1 {[%emt 00:01:23]} Ne4 {[%emt
00:00:22]} 16. Qe1 c5 {[%emt 00:00:10]} 17. Nd2 {[%emt 00:01:05]} Rac8 {[%emt
00:01:14]} 18. f3 {[%emt 00:01:14]} Nf6 {[%emt 00:00:46]} 19. e4 {[%emt
00:00:14]} fxe4 {[%emt 00:00:14]} 20. Nxe4 {[%emt 00:00:14]} Bxe4 {[%emt
00:00:25]} 21. Bxe4 {[%emt 00:00:14]} cxd4 {[%emt 00:00:09]} 22. Rxd4 {[%emt
00:00:16]} e5 {[%emt 00:00:10]} 23. Bd5+ {[%emt 00:00:18]} Nxd5 {[%emt
00:00:54]} 24. cxd5 {[%emt 00:00:02]} Qf7 {[%emt 00:02:29]} 25. Rd2 {[%emt
00:00:29]} Rc5 {[%emt 00:00:15]} 26. Qe4 {[%emt 00:00:17]} Rfc8 {[%emt
00:00:02]} 27. Qg4 {[%emt 00:01:17]} Kf8 {[%emt 00:03:35]} 28. Re1 {[%emt
00:00:57]} R8c7 {[%emt 00:00:30]} 29. Qh4 {[%emt 00:00:15]} Qf5+ {[%emt
00:00:55]} 30. Ka2 {[%emt 00:01:00]} Re7 {[%emt 00:00:16]} 31. Re4 {[%emt
00:00:12]} h6 {[%emt 00:00:22]} 32. h3 {[%emt 00:00:49]} Qf7 {[%emt 00:00:09]}
33. Rc4 {[%emt 00:01:16]} Rxd5 {[%emt 00:01:14]} 34. Rxd5 {[%emt 00:00:57]}
Qxd5 {[%emt 00:00:02]} 35. Qe4 Qe6 {[%emt 00:00:23]} 36. Qc6 {[%emt 00:00:13]}
d5 {[%emt 00:00:13]} 37. Qxe6 {[%emt 00:00:09]} Rxe6 {[%emt 00:00:01]} 38. Rc7
Re7 39. Rc8+ {[%emt 00:00:04]} Kf7 {[%emt 00:00:01]} 40. Rd8 {[%emt 00:00:01]}
Ke6 {[%emt 00:00:02]} 41. Kb3 {[%emt 00:00:01]} e4 {[%emt 00:00:25]} 42. Kc3
{[%emt 00:00:12]} exf3 {[%emt 00:00:03]} 43. gxf3 {[%emt 00:00:01]} Rf7 {[%emt
00:00:03]} 44. Kd4 {[%emt 00:00:03]} Rxf3 {[%emt 00:00:03]} 45. Re8+ {[%emt
00:00:07]} Kf7 {[%emt 00:00:07]} 46. Ra8 {[%emt 00:00:02]} Rxh3 {[%emt
00:00:02]} 47. Rxa7+ {[%emt 00:00:01]} Kg6 {[%emt 00:00:03]} 48. Ra6 {[%emt
00:00:06]} Rb3 {[%emt 00:00:01]} 49. a4 {[%emt 00:00:09]} Kg5 {[%emt 00:00:01]}
50. Ra7 {[%emt 00:00:10]} g6 {[%emt 00:00:09]} 51. Rd7 {[%emt 00:00:05]} Rxb2
{[%emt 00:00:08]} 52. Rxd5+ {[%emt 00:00:01]} Kf4 {[%emt 00:00:12]} 53. Rd6
{[%emt 00:00:02]} Kf5 {[%emt 00:00:02]} 54. Rd5+ {[%emt 00:00:14]} Ke6 55. Re5+
Kf6 {[%emt 00:00:06]} 0-1

[Event "MČR v rapid šachu družstev 2019"]
[Site "Teplice, Czech Republic"]
[Date "2019.09.15"]
[Round "2.16"]
[White "Postupa, Pavel"]
[Black "Burgermeister, Michal"]
[Result "1-0"]
[TimeControl "15 min. + 5s"]
[WhiteElo "2203"]
[BlackElo "1908"]

1. e4 {[%clk 00:15:08]} {[%emt 00:00:02]} c5 {[%clk 00:15:05]} {[%emt
00:00:05]} 2. Nf3 {[%clk 00:15:11]} {[%emt 00:00:02]} d6 {[%clk 00:15:05]}
{[%emt 00:00:05]} 3. d4 {[%clk 00:15:15]} {[%emt 00:00:02]} cxd4 {[%clk
00:15:07]} {[%emt 00:00:02]} 4. Nxd4 {[%clk 00:15:19]} {[%emt 00:00:01]} Nf6
{[%clk 00:15:10]} {[%emt 00:00:02]} 5. Nc3 {[%clk 00:15:22]} {[%emt 00:00:02]}
g6 {[%clk 00:15:14]} {[%emt 00:00:01]} 6. Bc4 {[%clk 00:15:13]} {[%emt
00:00:14]} Bg7 {[%clk 00:15:14]} {[%emt 00:00:06]} 7. O-O {[%clk 00:15:15]}
{[%emt 00:00:03]} O-O {[%clk 00:15:16]} {[%emt 00:00:03]} 8. Bb3 {[%clk
00:15:17]} {[%emt 00:00:03]} Nc6 {[%clk 00:15:09]} {[%emt 00:00:11]} 9. Nxc6
{[%clk 00:15:12]} {[%emt 00:00:10]} bxc6 {[%clk 00:15:10]} {[%emt 00:00:04]} 10.
Re1 {[%clk 00:15:15]} {[%emt 00:00:02]} Qc7 {[%clk 00:14:31]} {[%emt 00:00:45]}
11. Bg5 {[%clk 00:15:16]} {[%emt 00:00:03]} h6 {[%clk 00:13:41]} {[%emt
00:00:55]} 12. Bh4 {[%clk 00:15:19]} {[%emt 00:00:02]} Rb8 {[%clk 00:12:52]}
{[%emt 00:00:54]} 13. Qd3 {[%clk 00:14:49]} {[%emt 00:00:34]} Kh7 {[%clk
00:11:23]} {[%emt 00:01:35]} 14. Rad1 {[%clk 00:14:20]} {[%emt 00:00:33]} Be6
{[%clk 00:09:36]} {[%emt 00:01:52]} 15. Bxe6 {[%clk 00:12:51]} {[%emt
00:01:34]} fxe6 {[%clk 00:09:38]} {[%emt 00:00:02]} 16. b3 {[%clk 00:12:28]}
{[%emt 00:00:28]} Ng4 {[%clk 00:07:25]} {[%emt 00:02:18]} 17. Na4 {[%clk
00:10:11]} {[%emt 00:02:22]} Rf7 {[%clk 00:05:36]} {[%emt 00:01:55]} 18. Qh3
{[%clk 00:09:45]} {[%emt 00:00:31]} Ne5 {[%clk 00:03:36]} {[%emt 00:02:05]} 19.
Qxe6 {[%clk 00:08:58]} {[%emt 00:00:52]} Rbf8 {[%clk 00:03:20]} {[%emt
00:00:22]} 20. Bg3 {[%clk 00:07:40]} {[%emt 00:01:23]} h5 {[%clk 00:02:01]}
{[%emt 00:01:24]} 21. Re2 {[%clk 00:03:35]} {[%emt 00:04:10]} Rf6 {[%clk
00:01:00]} {[%emt 00:01:05]} 22. Qh3 {[%clk 00:03:33]} {[%emt 00:00:06]} Ng4
{[%clk 00:00:46]} {[%emt 00:00:20]} 23. f3 {[%clk 00:03:15]} {[%emt 00:00:23]}
Ne5 {[%clk 00:00:35]} {[%emt 00:00:15]} 24. Bxe5 {[%clk 00:03:18]} {[%emt
00:00:01]} dxe5 {[%clk 00:00:39]} {[%emt 00:00:01]} 25. Rd7 {[%clk 00:03:17]}
{[%emt 00:00:07]} Qa5 {[%clk 00:00:30]} {[%emt 00:00:14]} 26. Qg3 {[%clk
00:02:56]} {[%emt 00:00:26]} Qb5 {[%clk 00:00:31]} {[%emt 00:00:04]} 27. c4
{[%clk 00:02:54]} {[%emt 00:00:07]} Qb4 {[%clk 00:00:25]} {[%emt 00:00:10]} 28.
Qe1 {[%clk 00:02:57]} {[%emt 00:00:02]} Qxe1+ {[%clk 00:00:17]} {[%emt
00:00:13]} 29. Rxe1 {[%clk 00:03:01]} R8f7 {[%clk 00:00:19]} {[%emt 00:00:02]}
30. Red1 {[%clk 00:02:56]} {[%emt 00:00:11]} Bh6 {[%clk 00:00:22]} {[%emt
00:00:02]} 31. Kf2 {[%clk 00:02:42]} {[%emt 00:00:18]} h4 {[%clk 00:00:26]}
{[%emt 00:00:01]} 32. h3 {[%clk 00:02:40]} {[%emt 00:00:07]} Bf4 {[%clk
00:00:28]} {[%emt 00:00:03]} 33. Rxa7 {[%clk 00:02:35]} {[%emt 00:00:10]} g5
{[%clk 00:00:26]} {[%emt 00:00:08]} 34. Rdd7 {[%clk 00:02:37]} {[%emt
00:00:02]} 1-0

[Event "MČR v rapid šachu družstev 2019"]
[Site "Teplice, Czech Republic"]
[Date "2019.09.15"]
[Round "2.17"]
[White "Hacha, Ales"]
[Black "Krejci, Jan"]
[Result "0-1"]
[TimeControl "15 min. + 5s"]
[WhiteElo "2093"]
[BlackElo "2496"]

1. Nf3 {[%clk 00:15:06]} {[%emt 00:00:03]} Nf6 {[%clk 00:15:09]} {[%emt
00:00:01]} 2. g3 {[%clk 00:15:07]} {[%emt 00:00:05]} b5 {[%clk 00:15:12]}
{[%emt 00:00:02]} 3. Bg2 {[%clk 00:15:09]} {[%emt 00:00:03]} Bb7 {[%clk
00:15:15]} {[%emt 00:00:01]} 4. O-O {[%clk 00:15:11]} {[%emt 00:00:03]} e6
{[%clk 00:15:19]} {[%emt 00:00:02]} 5. d4 {[%clk 00:15:11]} {[%emt 00:00:04]}
Be7 {[%clk 00:15:21]} {[%emt 00:00:03]} 6. a4 {[%clk 00:15:00]} {[%emt
00:00:16]} b4 {[%clk 00:15:17]} {[%emt 00:00:09]} 7. c4 {[%clk 00:14:52]}
{[%emt 00:00:13]} O-O {[%clk 00:15:07]} {[%emt 00:00:16]} 8. Bf4 {[%clk
00:14:15]} {[%emt 00:00:41]} c5 {[%clk 00:13:45]} {[%emt 00:01:27]} 9. Nbd2
{[%clk 00:13:13]} {[%emt 00:01:08]} cxd4 {[%clk 00:13:32]} {[%emt 00:00:17]} 10.
Nxd4 {[%clk 00:12:51]} {[%emt 00:00:27]} Bxg2 {[%clk 00:13:34]} {[%emt
00:00:03]} 11. Kxg2 {[%clk 00:12:54]} {[%emt 00:00:02]} d6 {[%clk 00:13:09]}
{[%emt 00:00:31]} 12. Bg5 {[%clk 00:12:02]} {[%emt 00:00:56]} h6 {[%clk
00:12:53]} {[%emt 00:00:21]} 13. Bxf6 {[%clk 00:12:00]} {[%emt 00:00:07]} Bxf6
{[%clk 00:12:56]} {[%emt 00:00:02]} 14. N2b3 {[%clk 00:11:09]} {[%emt
00:00:56]} Nd7 {[%clk 00:10:12]} {[%emt 00:02:49]} 15. e4 {[%clk 00:09:06]}
{[%emt 00:02:09]} a6 {[%clk 00:08:38]} {[%emt 00:01:39]} 0-1

[Event "MČR v rapid šachu družstev 2019"]
[Site "Teplice, Czech Republic"]
[Date "2019.09.15"]
[Round "2.18"]
[White "Sorm, Daniel"]
[Black "Sykora, Ondrej"]
[Result "1-0"]
[TimeControl "15 min. + 5s"]
[WhiteElo "2313"]
[BlackElo "2098"]

1. d4 {[%clk 00:15:09]} {[%emt 00:00:01]} Nf6 {[%clk 00:15:04]} {[%emt
00:00:06]} 2. c4 {[%clk 00:15:12]} {[%emt 00:00:02]} d6 {[%clk 00:15:07]}
{[%emt 00:00:02]} 3. Nc3 {[%clk 00:15:16]} {[%emt 00:00:02]} e5 {[%clk
00:15:07]} {[%emt 00:00:04]} 4. d5 {[%clk 00:15:20]} {[%emt 00:00:01]} g6
{[%clk 00:15:06]} {[%emt 00:00:06]} 5. e4 {[%clk 00:15:21]} {[%emt 00:00:03]}
Bg7 {[%clk 00:15:10]} {[%emt 00:00:02]} 6. h3 {[%clk 00:15:22]} {[%emt
00:00:05]} O-O {[%clk 00:15:03]} {[%emt 00:00:11]} 7. Be3 {[%clk 00:15:26]} c5
{[%clk 00:14:57]} {[%emt 00:00:12]} 8. Bd3 {[%clk 00:15:07]} {[%emt 00:00:24]}
Ne8 {[%clk 00:14:02]} {[%emt 00:01:00]} 9. g4 {[%clk 00:14:44]} {[%emt
00:00:28]} f5 {[%clk 00:13:40]} {[%emt 00:00:28]} 10. gxf5 {[%clk 00:14:39]}
{[%emt 00:00:10]} gxf5 {[%clk 00:13:43]} {[%emt 00:00:01]} 11. exf5 {[%clk
00:14:42]} {[%emt 00:00:02]} Bxf5 {[%clk 00:13:41]} {[%emt 00:00:07]} 12. Ne4
{[%clk 00:13:58]} {[%emt 00:00:48]} Qh4 {[%clk 00:11:34]} {[%emt 00:02:13]} 13.
Bg5 {[%clk 00:13:29]} {[%emt 00:00:34]} Bxe4 {[%clk 00:11:26]} {[%emt
00:00:13]} 14. Bxh4 {[%clk 00:13:30]} {[%emt 00:00:04]} Bxh1 {[%clk 00:11:30]}
{[%emt 00:00:01]} 15. Qh5 {[%clk 00:11:43]} {[%emt 00:01:52]} e4 {[%clk
00:11:14]} {[%emt 00:00:21]} 16. Be2 {[%clk 00:11:29]} {[%emt 00:00:19]} Bxb2
{[%clk 00:11:16]} {[%emt 00:00:03]} 17. Rb1 {[%clk 00:11:32]} {[%emt 00:00:02]}
Bc3+ {[%clk 00:10:54]} {[%emt 00:00:27]} 18. Kf1 {[%clk 00:11:32]} {[%emt
00:00:05]} b6 {[%clk 00:10:29]} {[%emt 00:00:30]} 19. Bg4 {[%clk 00:10:55]}
{[%emt 00:00:41]} Nf6 {[%clk 00:09:17]} {[%emt 00:01:17]} 20. Be6+ {[%clk
00:09:57]} {[%emt 00:01:04]} Kg7 {[%clk 00:08:07]} {[%emt 00:01:15]} 21. Qg5+
{[%clk 00:09:56]} {[%emt 00:00:07]} Kh8 {[%clk 00:08:06]} {[%emt 00:00:05]} 22.
Rb3 {[%clk 00:09:27]} {[%emt 00:00:34]} Be5 {[%clk 00:07:53]} {[%emt 00:00:18]}
23. Bg3 {[%clk 00:08:58]} {[%emt 00:00:34]} Nbd7 {[%clk 00:07:53]} {[%emt
00:00:05]} 24. Bxe5 {[%clk 00:08:45]} {[%emt 00:00:18]} Nxe5 {[%clk 00:07:41]}
{[%emt 00:00:18]} 25. Rg3 {[%clk 00:08:47]} {[%emt 00:00:03]} Ng6 {[%clk
00:07:26]} {[%emt 00:00:19]} 26. h4 {[%clk 00:07:47]} {[%emt 00:01:05]} e3
{[%clk 00:07:01]} {[%emt 00:00:30]} 27. Qxe3 {[%clk 00:06:08]} {[%emt
00:01:44]} Rae8 {[%clk 00:03:08]} {[%emt 00:03:59]} 28. h5 {[%clk 00:05:16]}
{[%emt 00:00:57]} Nxh5 {[%emt 00:01:33]} 29. Rxg6 {[%clk 00:05:08]} {[%emt
00:00:12]} Nf4 {[%clk 00:01:42]} {[%emt 00:00:04]} 30. Qc3+ {[%emt 00:00:27]}
1-0